[Event "Live Chess"]
[Site "Chess.com"]
[Date "2024.06.01"]
[Round "-"]
[White "Zhevzh1k7"]
[Black "alexholowczak"]
[Result "0-1"]
[WhiteElo "1103"]
[BlackElo "1454"]
[TimeControl "300"]
[EndTime "13:15:25 PDT"]
[Termination "alexholowczak won by checkmate"]

1. e4 {[%clk 0:04:58.2]} 1... e6 {[%clk 0:04:58.6]} 2. d4 {[%clk 0:04:56.2]}
2... d5 {[%clk 0:04:58]} 3. exd5 {[%clk 0:04:53.8]} 3... exd5 {[%clk 0:04:56.9]}
4. Nf3 {[%clk 0:04:53.5]} 4... Nf6 {[%clk 0:04:56.2]} 5. Nc3 {[%clk 0:04:51.9]}
5... Bd6 {[%clk 0:04:55]} 6. Bg5 {[%clk 0:04:48.1]} 6... c6 {[%clk 0:04:53.7]}
7. Bd3 {[%clk 0:04:45.2]} 7... O-O {[%clk 0:04:52.3]} 8. O-O {[%clk 0:04:43.3]}
8... Nbd7 {[%clk 0:04:48.4]} 9. Re1 {[%clk 0:04:41]} 9... Re8 {[%clk 0:04:47.5]}
10. Rxe8+ {[%clk 0:04:33.1]} 10... Qxe8 {[%clk 0:04:45.3]} 11. Bxf6 {[%clk
0:04:32.2]} 11... Nxf6 {[%clk 0:04:43.5]} 12. Qe1 {[%clk 0:04:30.1]} 12... Be6
{[%clk 0:04:40.9]} 13. Ne5 {[%clk 0:04:25.7]} 13... c5 {[%clk 0:04:22.1]} 14.
dxc5 {[%clk 0:04:18.9]} 14... Bxc5 {[%clk 0:04:20.2]} 15. Bb5 {[%clk 0:04:08.4]}
15... Qb8 {[%clk 0:04:16.4]} 16. Rd1 {[%clk 0:03:59.2]} 16... Bd6 {[%clk
0:04:09.1]} 17. Nf3 {[%clk 0:03:54.8]} 17... a6 {[%clk 0:04:02.1]} 18. Ba4
{[%clk 0:03:51.3]} 18... b5 {[%clk 0:04:01.1]} 19. Bb3 {[%clk 0:03:50.2]} 19...
Qb7 {[%clk 0:03:52.2]} 20. Ng5 {[%clk 0:03:46.2]} 20... Re8 {[%clk 0:03:48.5]}
21. Nxd5 {[%clk 0:03:06]} 21... Bxd5 {[%clk 0:03:35.3]} 22. Qxe8+ {[%clk
0:02:48.4]} 22... Nxe8 {[%clk 0:03:32.2]} 23. Bxd5 {[%clk 0:02:43.8]} 23... Qe7
{[%clk 0:03:23.4]} 24. Bxf7+ {[%clk 0:02:39.1]} 24... Kh8 {[%clk 0:03:21.5]} 25.
Bxe8 {[%clk 0:02:19.6]} 25... Qxe8 {[%clk 0:03:19.2]} 26. Nf3 {[%clk 0:02:06]}
26... Bb8 {[%clk 0:03:04]} 27. Ng5 {[%clk 0:01:56.9]} 27... h6 {[%clk
0:02:56.7]} 28. Rd8 {[%clk 0:01:54.8]} 28... Qxd8 {[%clk 0:02:48.6]} 29. Nf7+
{[%clk 0:01:53.8]} 29... Kh7 {[%clk 0:02:47.4]} 30. Nxd8 {[%clk 0:01:53.7]}
30... Be5 {[%clk 0:02:45.5]} 31. c3 {[%clk 0:01:49.1]} 31... Kg6 {[%clk
0:02:43.7]} 32. g3 {[%clk 0:01:46.6]} 32... Kf6 {[%clk 0:02:41.2]} 33. Nc6
{[%clk 0:01:45]} 33... Bd6 {[%clk 0:02:37.6]} 34. f4 {[%clk 0:01:38.2]} 34...
Ke6 {[%clk 0:02:29.5]} 35. Kf2 {[%clk 0:01:35.5]} 35... Bc5+ {[%clk 0:02:26.5]}
36. Nd4+ {[%clk 0:01:32.5]} 36... Kd5 {[%clk 0:02:23.1]} 37. Ke3 {[%clk
0:01:30.2]} 37... b4 {[%clk 0:02:17.7]} 38. h3 {[%clk 0:01:21.1]} 38... bxc3
{[%clk 0:02:13.1]} 39. bxc3 {[%clk 0:01:19.2]} 39... Kc4 {[%clk 0:02:12.2]} 40.
Kd2 {[%clk 0:01:15.5]} 40... a5 {[%clk 0:01:38.3]} 41. Ne6 {[%clk 0:01:11.7]}
41... Bf2 {[%clk 0:01:33.2]} 42. Nxg7 {[%clk 0:01:09.1]} 42... Bxg3 {[%clk
0:01:32.2]} 43. Nf5 {[%clk 0:01:07.4]} 43... Bxf4+ {[%clk 0:01:30.8]} 44. Ne3+
{[%clk 0:01:05.5]} 44... Kb5 {[%clk 0:01:20.8]} 45. Kd3 {[%clk 0:01:03.1]} 45...
Ka4 {[%clk 0:01:16.1]} 46. c4 {[%clk 0:01:01.1]} 46... Ka3 {[%clk 0:01:14.2]}
47. c5 {[%clk 0:00:55.1]} 47... Kxa2 {[%clk 0:01:12.7]} 48. Nc4 {[%clk
0:00:54.4]} 48... a4 {[%clk 0:01:08.7]} 49. Kc3 {[%clk 0:00:53.1]} 49... Kb1
{[%clk 0:01:00.2]} 50. Kb4 {[%clk 0:00:49.7]} 50... Kc2 {[%clk 0:00:54.2]} 51.
Kxa4 {[%clk 0:00:47.4]} 51... Kc3 {[%clk 0:00:53]} 52. Kb5 {[%clk 0:00:45.7]}
52... Kd4 {[%clk 0:00:49.9]} 53. Nd6 {[%clk 0:00:41.3]} 53... Kd5 {[%clk
0:00:45.3]} 54. Kb6 {[%clk 0:00:37.4]} 54... Bxd6 {[%clk 0:00:42.1]} 55. cxd6
{[%clk 0:00:36]} 55... Kxd6 {[%clk 0:00:41.4]} 56. Kb5 {[%clk 0:00:35]} 56...
Kd5 {[%clk 0:00:40.4]} 57. Kb4 {[%clk 0:00:33.8]} 57... Kd4 {[%clk 0:00:39.4]}
58. Kb3 {[%clk 0:00:32.9]} 58... Kd3 {[%clk 0:00:36.8]} 59. Kb4 {[%clk
0:00:31.8]} 59... h5 {[%clk 0:00:35.7]} 60. Kc5 {[%clk 0:00:30.8]} 60... h4
{[%clk 0:00:34.7]} 61. Kd5 {[%clk 0:00:30.4]} 61... Ke3 {[%clk 0:00:34]} 62. Ke5
{[%clk 0:00:30]} 62... Kf3 {[%clk 0:00:33]} 63. Kf5 {[%clk 0:00:29.4]} 63... Kg3
{[%clk 0:00:32.2]} 64. Kg5 {[%clk 0:00:27.6]} 64... Kxh3 {[%clk 0:00:31.3]} 65.
Kf4 {[%clk 0:00:27.2]} 65... Kg2 {[%clk 0:00:29.9]} 66. Kg4 {[%clk 0:00:23.6]}
66... h3 {[%clk 0:00:28.1]} 67. Kf4 {[%clk 0:00:22.8]} 67... h2 {[%clk
0:00:27.5]} 68. Ke3 {[%clk 0:00:22.7]} 68... h1=Q {[%clk 0:00:26.2]} 69. Kf4
{[%clk 0:00:22.6]} 69... Qf1+ {[%clk 0:00:24.9]} 70. Ke5 {[%clk 0:00:22.5]}
70... Qf3 {[%clk 0:00:23.7]} 71. Kd4 {[%clk 0:00:22.4]} 71... Kf2 {[%clk
0:00:22.7]} 72. Ke5 {[%clk 0:00:21.1]} 72... Ke3 {[%clk 0:00:21.4]} 73. Ke6
{[%clk 0:00:19.9]} 73... Qh5 {[%clk 0:00:20.5]} 74. Kd6 {[%clk 0:00:19.1]} 74...
Qf5 {[%clk 0:00:19.5]} 75. Kc6 {[%clk 0:00:17.7]} 75... Qe5 {[%clk 0:00:18.8]}
76. Kd7 {[%clk 0:00:16.7]} 76... Qf6 {[%clk 0:00:18]} 77. Kc7 {[%clk 0:00:15.6]}
77... Qe6 {[%clk 0:00:17.4]} 78. Kb7 {[%clk 0:00:14.4]} 78... Qd6 {[%clk
0:00:16.3]} 79. Kc8 {[%clk 0:00:13.3]} 79... Qe7 {[%clk 0:00:15.3]} 80. Kb8
{[%clk 0:00:12.1]} 80... Kd4 {[%clk 0:00:15.2]} 81. Kc8 {[%clk 0:00:12]} 81...
Kc5 {[%clk 0:00:15.1]} 82. Kb8 {[%clk 0:00:11.6]} 82... Kc6 {[%clk 0:00:15]} 83.
Ka8 {[%clk 0:00:10.3]} 83... Qb7# {[%clk 0:00:13.7]} 0-1

[Event "Live Chess"]
[Site "Chess.com"]
[Date "2024.06.01"]
[Round "-"]
[White "NeilDruggan73"]
[Black "Dhaydon19"]
[Result "0-1"]
[WhiteElo "1756"]
[BlackElo "2666"]
[TimeControl "300"]
[EndTime "13:15:35 PDT"]
[Termination "Dhaydon19 won by resignation"]

1. d4 {[%clk 0:04:54.1]} 1... b6 {[%clk 0:04:59.6]} 2. Bg5 {[%clk 0:04:50.6]}
2... Bb7 {[%clk 0:04:59.3]} 3. c4 {[%clk 0:04:43.9]} 3... Nf6 {[%clk 0:04:58.6]}
4. Bxf6 {[%clk 0:04:41.8]} 4... exf6 {[%clk 0:04:57.6]} 5. Nc3 {[%clk
0:04:33.4]} 5... g6 {[%clk 0:04:56.7]} 6. e3 {[%clk 0:04:28.2]} 6... Bg7 {[%clk
0:04:56.2]} 7. Nf3 {[%clk 0:04:27.1]} 7... O-O {[%clk 0:04:55.4]} 8. Be2 {[%clk
0:04:22.3]} 8... d6 {[%clk 0:04:55]} 9. h4 {[%clk 0:04:19.4]} 9... Nd7 {[%clk
0:04:54.7]} 10. h5 {[%clk 0:04:18.2]} 10... f5 {[%clk 0:04:54]} 11. hxg6 {[%clk
0:04:12.7]} 11... hxg6 {[%clk 0:04:50.3]} 12. Qc2 {[%clk 0:04:05.1]} 12... Re8
{[%clk 0:04:48.5]} 13. O-O-O {[%clk 0:04:03.5]} 13... Nf6 {[%clk 0:04:45.6]} 14.
Ng5 {[%clk 0:03:50.6]} 14... Ng4 {[%clk 0:04:40.6]} 15. Bxg4 {[%clk 0:03:43.8]}
15... fxg4 {[%clk 0:04:39.1]} 16. Nce4 {[%clk 0:02:35.6]} 16... Qe7 {[%clk
0:04:30.9]} 17. d5 {[%clk 0:02:29.4]} 17... Bc8 {[%clk 0:04:24.5]} 18. Rh7
{[%clk 0:02:23.1]} 18... f5 {[%clk 0:04:15.7]} 19. Ng3 {[%clk 0:01:48.5]} 19...
Qxg5 {[%clk 0:04:12.7]} 20. Rdh1 {[%clk 0:01:43.9]} 20... Qf6 {[%clk 0:04:10.7]}
21. Ne2 {[%clk 0:01:29.7]} 21... Bd7 {[%clk 0:04:08.7]} 22. Nf4 {[%clk
0:01:28.4]} 22... Re4 {[%clk 0:04:06.9]} 23. R1h2 {[%clk 0:00:56.3]} 23... Rae8
{[%clk 0:04:00.7]} 24. Rxg7+ {[%clk 0:00:52.8]} 24... Qxg7 {[%clk 0:03:58.5]}
25. Qd1 {[%clk 0:00:50.2]} 25... Rxc4+ {[%clk 0:03:56.3]} 26. Kb1 {[%clk
0:00:48.3]} 26... Rxf4 {[%clk 0:03:53.9]} 27. exf4 {[%clk 0:00:46.3]} 27... Qe7
{[%clk 0:03:53.6]} 28. Qh1 {[%clk 0:00:44.4]} 28... Qe1+ {[%clk 0:03:52]} 29.
Qxe1 {[%clk 0:00:38.3]} 29... Rxe1+ {[%clk 0:03:50.8]} 30. Kc2 {[%clk
0:00:37.9]} 30... Re2+ {[%clk 0:03:50.5]} 31. Kc3 {[%clk 0:00:31.7]} 31... Rxf2
{[%clk 0:03:50.1]} 0-1

[Event "Live Chess"]
[Site "Chess.com"]
[Date "2024.06.01"]
[Round "-"]
[White "vincents82"]
[Black "mrsmarple1968"]
[Result "1-0"]
[WhiteElo "2099"]
[BlackElo "1753"]
[TimeControl "300"]
[EndTime "13:15:37 PDT"]
[Termination "vincents82 won by resignation"]

1. e4 {[%clk 0:04:54.6]} 1... e5 {[%clk 0:04:58.1]} 2. Nf3 {[%clk 0:04:53.2]}
2... Nc6 {[%clk 0:04:56]} 3. Bb5 {[%clk 0:04:51.9]} 3... a6 {[%clk 0:04:54.1]}
4. Ba4 {[%clk 0:04:50.6]} 4... Nf6 {[%clk 0:04:50.7]} 5. d3 {[%clk 0:04:48.5]}
5... d6 {[%clk 0:04:45.4]} 6. c3 {[%clk 0:04:40.7]} 6... Be7 {[%clk 0:04:16.7]}
7. O-O {[%clk 0:04:29.2]} 7... O-O {[%clk 0:04:13.7]} 8. Re1 {[%clk 0:04:23]}
8... b5 {[%clk 0:04:11.5]} 9. Bc2 {[%clk 0:04:21.7]} 9... a5 {[%clk 0:04:03.9]}
10. Nbd2 {[%clk 0:04:18.5]} 10... b4 {[%clk 0:03:56.2]} 11. Nf1 {[%clk
0:04:16.7]} 11... Bg4 {[%clk 0:03:41.4]} 12. h3 {[%clk 0:04:14.2]} 12... Bh5
{[%clk 0:03:37.8]} 13. Ng3 {[%clk 0:04:13.2]} 13... Bg6 {[%clk 0:03:36.2]} 14.
d4 {[%clk 0:04:06.7]} 14... exd4 {[%clk 0:03:28.8]} 15. cxd4 {[%clk 0:04:05.6]}
15... Re8 {[%clk 0:03:22]} 16. e5 {[%clk 0:04:04.3]} 16... dxe5 {[%clk
0:03:16.1]} 17. dxe5 {[%clk 0:04:02.6]} 17... Bxc2 {[%clk 0:02:52.6]} 18. Qxc2
{[%clk 0:03:59]} 18... Nd7 {[%clk 0:02:48.8]} 19. Qxc6 {[%clk 0:03:52.1]} 19...
Rb8 {[%clk 0:02:45.9]} 20. Bf4 {[%clk 0:03:32.8]} 20... Rb6 {[%clk 0:02:42.5]}
21. Qe4 {[%clk 0:03:30.3]} 21... Nc5 {[%clk 0:02:30.8]} 22. Qe2 {[%clk
0:03:28.3]} 22... Ne6 {[%clk 0:02:23.3]} 23. Be3 {[%clk 0:03:25.9]} 23... Rb8
{[%clk 0:02:19.1]} 24. Rad1 {[%clk 0:03:24.4]} 24... Qc8 {[%clk 0:02:16.5]} 25.
Nf5 {[%clk 0:03:21.8]} 25... c5 {[%clk 0:02:12.5]} 26. Nxe7+ {[%clk 0:03:20.4]}
26... Rxe7 {[%clk 0:02:10.9]} 27. Ng5 {[%clk 0:03:15.4]} 27... h6 {[%clk
0:02:03.3]} 28. Nxe6 {[%clk 0:03:14.1]} 28... Rxe6 {[%clk 0:02:01.9]} 29. Rd5
{[%clk 0:03:11.7]} 29... Qc6 {[%clk 0:01:59.1]} 30. Rxc5 {[%clk 0:03:08]} 1-0

[Event "Live Chess"]
[Site "Chess.com"]
[Date "2024.06.01"]
[Round "-"]
[White "booktrunk"]
[Black "FlyingChessKestrel13"]
[Result "0-1"]
[WhiteElo "1388"]
[BlackElo "2074"]
[TimeControl "300"]
[EndTime "13:15:49 PDT"]
[Termination "FlyingChessKestrel13 won by resignation"]

1. d4 {[%clk 0:04:55]} 1... d5 {[%clk 0:04:58.5]} 2. Nc3 {[%clk 0:04:49.8]} 2...
Nf6 {[%clk 0:04:55.5]} 3. Bf4 {[%clk 0:04:49.7]} 3... c6 {[%clk 0:04:53.8]} 4.
e3 {[%clk 0:04:43.6]} 4... Bf5 {[%clk 0:04:51.6]} 5. Bd3 {[%clk 0:04:41.2]} 5...
Bxd3 {[%clk 0:04:47.1]} 6. Qxd3 {[%clk 0:04:40.2]} 6... e6 {[%clk 0:04:46.7]} 7.
Nge2 {[%clk 0:04:36.7]} 7... Bd6 {[%clk 0:04:44.1]} 8. Bxd6 {[%clk 0:04:34.2]}
8... Qxd6 {[%clk 0:04:43]} 9. Ng3 {[%clk 0:04:33]} 9... O-O {[%clk 0:04:41.6]}
10. O-O-O {[%clk 0:04:31.5]} 10... Nbd7 {[%clk 0:04:40.4]} 11. e4 {[%clk
0:04:30.4]} 11... dxe4 {[%clk 0:04:38.6]} 12. Ncxe4 {[%clk 0:04:28.7]} 12...
Nxe4 {[%clk 0:04:37.8]} 13. Qxe4 {[%clk 0:04:27.2]} 13... Qd5 {[%clk 0:04:36.8]}
14. Qxd5 {[%clk 0:04:25.8]} 14... cxd5 {[%clk 0:04:35.3]} 15. Rhe1 {[%clk
0:04:24.5]} 15... Rac8 {[%clk 0:04:34]} 16. c3 {[%clk 0:04:22.6]} 16... Nb6
{[%clk 0:04:33]} 17. Re2 {[%clk 0:04:19.5]} 17... a5 {[%clk 0:04:31.9]} 18. Kc2
{[%clk 0:04:16.6]} 18... a4 {[%clk 0:04:31.2]} 19. a3 {[%clk 0:04:14.1]} 19...
Nc4 {[%clk 0:04:29.8]} 20. Nf1 {[%clk 0:04:09]} 20... Rc6 {[%clk 0:04:27.9]} 21.
Nd2 {[%clk 0:04:07.8]} 21... Rfc8 {[%clk 0:04:27.1]} 22. Nxc4 {[%clk 0:04:05.8]}
22... Rxc4 {[%clk 0:04:26.7]} 23. Rd3 {[%clk 0:04:04.6]} 23... g6 {[%clk
0:04:25.8]} 24. h4 {[%clk 0:04:01.1]} 24... h5 {[%clk 0:04:24.3]} 25. f3 {[%clk
0:03:58.7]} 25... Kh7 {[%clk 0:04:23]} 26. g4 {[%clk 0:03:57.7]} 26... Kh6
{[%clk 0:04:21.9]} 27. g5+ {[%clk 0:03:55.7]} 27... Kg7 {[%clk 0:04:21]} 28. f4
{[%clk 0:03:54.8]} 28... b5 {[%clk 0:04:15.7]} 29. Kb1 {[%clk 0:03:50]} 29...
R8c6 {[%clk 0:04:14.2]} 30. Ka2 {[%clk 0:03:46.1]} 30... Rd6 {[%clk 0:04:13.2]}
31. Re5 {[%clk 0:03:42.9]} 31... Rcc6 {[%clk 0:04:11.6]} 32. Re2 {[%clk
0:03:35.7]} 32... f6 {[%clk 0:04:10.3]} 33. gxf6+ {[%clk 0:03:33]} 33... Kxf6
{[%clk 0:04:09.2]} 34. Rde3 {[%clk 0:03:30.4]} 34... Rc7 {[%clk 0:04:06.9]} 35.
Re5 {[%clk 0:03:28.8]} 35... Rf7 {[%clk 0:04:05.7]} 36. Rg2 {[%clk 0:03:25.9]}
36... Kg7 {[%clk 0:04:03.8]} 37. Rgg5 {[%clk 0:03:24.3]} 37... Rxf4 {[%clk
0:04:01.5]} 38. Kb1 {[%clk 0:03:18.6]} 38... Rxh4 {[%clk 0:04:00.2]} 39. Re1
{[%clk 0:03:16]} 39... Kf6 {[%clk 0:03:54.5]} 40. Rge5 {[%clk 0:03:15.5]} 40...
Rf4 {[%clk 0:03:53.4]} 41. R5e3 {[%clk 0:03:12.6]} 41... Rf5 {[%clk 0:03:52.5]}
42. Rh3 {[%clk 0:03:10.7]} 42... Rd7 {[%clk 0:03:50.1]} 43. Ree3 {[%clk
0:03:09]} 43... Re7 {[%clk 0:03:46.6]} 44. Rhg3 {[%clk 0:03:06.8]} 44... e5
{[%clk 0:03:44.9]} 45. dxe5+ {[%clk 0:03:05]} 45... Rexe5 {[%clk 0:03:44]} 46.
Rd3 {[%clk 0:03:04.5]} 46... g5 {[%clk 0:03:42.5]} 47. Rh3 {[%clk 0:03:00.2]}
47... g4 {[%clk 0:03:41.1]} 48. Rh4 {[%clk 0:02:58.4]} 48... Kg5 {[%clk
0:03:40.1]} 0-1

[Event "Live Chess"]
[Site "Chess.com"]
[Date "2024.06.01"]
[Round "-"]
[White "JanMur7"]
[Black "defenderalist"]
[Result "1-0"]
[WhiteElo "2311"]
[BlackElo "1517"]
[TimeControl "300"]
[EndTime "13:15:53 PDT"]
[Termination "JanMur7 won by resignation"]

1. c4 {[%clk 0:04:58.5]} 1... e5 {[%clk 0:04:55.9]} 2. Nc3 {[%clk 0:04:57.1]}
2... Nf6 {[%clk 0:04:54.6]} 3. Nf3 {[%clk 0:04:56.2]} 3... d6 {[%clk 0:04:50.4]}
4. d4 {[%clk 0:04:54.3]} 4... exd4 {[%clk 0:04:49]} 5. Nxd4 {[%clk 0:04:54.2]}
5... Bf5 {[%clk 0:04:45.2]} 6. Nxf5 {[%clk 0:04:52.5]} 6... Nbd7 {[%clk
0:04:36]} 7. g3 {[%clk 0:04:48.4]} 7... Be7 {[%clk 0:04:35.4]} 8. Nxg7+ {[%clk
0:04:45.8]} 8... Kf8 {[%clk 0:04:33.4]} 9. Bh6 {[%clk 0:04:45.7]} 9... Kg8
{[%clk 0:04:31.9]} 10. Bg2 {[%clk 0:04:42.6]} 10... a5 {[%clk 0:04:26.1]} 11.
Qd2 {[%clk 0:04:36.6]} 1-0

[Event "Live Chess"]
[Site "Chess.com"]
[Date "2024.06.01"]
[Round "-"]
[White "Brooms1989"]
[Black "CarmelJane"]
[Result "0-1"]
[WhiteElo "1110"]
[BlackElo "2084"]
[TimeControl "300"]
[EndTime "13:16:09 PDT"]
[Termination "CarmelJane won by resignation"]

1. e4 {[%clk 0:04:51.9]} 1... g6 {[%clk 0:04:59.1]} 2. d4 {[%clk 0:04:49.9]}
2... Bg7 {[%clk 0:04:59]} 3. Nf3 {[%clk 0:04:48.8]} 3... c5 {[%clk 0:04:57.3]}
4. Nc3 {[%clk 0:04:34.2]} 4... cxd4 {[%clk 0:04:55.9]} 5. Nxd4 {[%clk
0:04:32.8]} 5... Nc6 {[%clk 0:04:55.8]} 6. Nxc6 {[%clk 0:04:28.7]} 6... bxc6
{[%clk 0:04:55.7]} 7. Bd3 {[%clk 0:04:23.4]} 7... Nf6 {[%clk 0:04:51.6]} 8. O-O
{[%clk 0:04:20.8]} 8... O-O {[%clk 0:04:50.2]} 9. f4 {[%clk 0:04:17.4]} 9... a5
{[%clk 0:04:48.9]} 10. a4 {[%clk 0:04:11.6]} 10... d5 {[%clk 0:04:45.5]} 11. e5
{[%clk 0:04:02.2]} 11... Ng4 {[%clk 0:04:44]} 12. h3 {[%clk 0:03:55.7]} 12...
Qb6+ {[%clk 0:04:42.7]} 0-1

[Event "Live Chess"]
[Site "Chess.com"]
[Date "2024.06.01"]
[Round "-"]
[White "ACM42"]
[Black "alicechristina"]
[Result "0-1"]
[WhiteElo "2169"]
[BlackElo "1870"]
[TimeControl "300"]
[EndTime "13:16:11 PDT"]
[Termination "alicechristina won by resignation"]

1. e4 {[%clk 0:04:58.4]} 1... e5 {[%clk 0:04:56.8]} 2. Nf3 {[%clk 0:04:57.3]}
2... Nf6 {[%clk 0:04:54.8]} 3. Nxe5 {[%clk 0:04:53.8]} 3... d6 {[%clk
0:04:49.6]} 4. Nf3 {[%clk 0:04:49.8]} 4... Nxe4 {[%clk 0:04:49]} 5. d3 {[%clk
0:04:49.3]} 5... Nf6 {[%clk 0:04:47.6]} 6. d4 {[%clk 0:04:48.5]} 6... d5 {[%clk
0:04:45.9]} 7. Bd3 {[%clk 0:04:45.7]} 7... Be7 {[%clk 0:04:43.6]} 8. O-O {[%clk
0:04:43.2]} 8... O-O {[%clk 0:04:43.2]} 9. h3 {[%clk 0:04:36.7]} 9... Nc6 {[%clk
0:04:42.2]} 10. c3 {[%clk 0:04:35.5]} 10... Bd6 {[%clk 0:04:39.2]} 11. Nbd2
{[%clk 0:04:34]} 11... Re8 {[%clk 0:04:37.4]} 12. Re1 {[%clk 0:04:32.8]} 12...
Rxe1+ {[%clk 0:04:33.6]} 13. Qxe1 {[%clk 0:04:31.4]} 13... Ne7 {[%clk
0:04:29.5]} 14. Nf1 {[%clk 0:04:29.6]} 14... Bf5 {[%clk 0:04:27.1]} 15. Bxf5
{[%clk 0:04:24.1]} 15... Nxf5 {[%clk 0:04:25.8]} 16. Bg5 {[%clk 0:04:20.4]}
16... h6 {[%clk 0:04:23.2]} 17. Bh4 {[%clk 0:04:19.2]} 17... Nxh4 {[%clk
0:04:21.6]} 18. Nxh4 {[%clk 0:04:17]} 18... Ne4 {[%clk 0:04:18.3]} 19. Nf5
{[%clk 0:04:15.8]} 19... Bf8 {[%clk 0:04:14.7]} 20. f3 {[%clk 0:04:13.9]} 20...
Nd6 {[%clk 0:04:13.7]} 21. N5e3 {[%clk 0:04:09.6]} 21... Qf6 {[%clk 0:04:08.4]}
22. Nxd5 {[%clk 0:04:05.4]} 22... Qg6 {[%clk 0:04:07.2]} 23. Nxc7 {[%clk
0:03:59]} 23... Rc8 {[%clk 0:04:03.4]} 24. Nd5 {[%clk 0:03:56.4]} 24... Re8
{[%clk 0:04:01.1]} 25. Qg3 {[%clk 0:03:54.3]} 25... Qe6 {[%clk 0:03:56.8]} 26.
Nc7 {[%clk 0:03:48.8]} 26... Qe7 {[%clk 0:03:46.7]} 27. Nxe8 {[%clk 0:03:47.3]}
27... Qxe8 {[%clk 0:03:45.7]} 28. Re1 {[%clk 0:03:46.1]} 28... Qb5 {[%clk
0:03:43.8]} 29. b3 {[%clk 0:03:40.3]} 29... Qa5 {[%clk 0:03:38.5]} 30. c4 {[%clk
0:03:32]} 30... Qxa2 {[%clk 0:03:36.6]} 31. c5 {[%clk 0:03:30.7]} 31... Nf5
{[%clk 0:03:35]} 32. Qf4 {[%clk 0:03:25.5]} 32... Ne7 {[%clk 0:03:29.2]} 33. Qb8
{[%clk 0:03:20.4]} 33... Nc6 {[%clk 0:03:19]} 34. Re8 {[%clk 0:03:14.6]} 34...
Nxb8 {[%clk 0:03:16.1]} 35. Rxb8 {[%clk 0:03:12.6]} 35... Qxb3 {[%clk
0:03:15.3]} 36. d5 {[%clk 0:03:09.5]} 36... Qxd5 {[%clk 0:03:13.7]} 0-1

[Event "Live Chess"]
[Site "Chess.com"]
[Date "2024.06.01"]
[Round "-"]
[White "PureDashingOctopus"]
[Black "cymbalshift"]
[Result "1-0"]
[WhiteElo "2270"]
[BlackElo "1655"]
[TimeControl "300"]
[EndTime "13:16:16 PDT"]
[Termination "PureDashingOctopus won by resignation"]

1. e4 {[%clk 0:04:58]} 1... e5 {[%clk 0:04:58.8]} 2. Nf3 {[%clk 0:04:56.8]} 2...
Nc6 {[%clk 0:04:58.3]} 3. Bb5 {[%clk 0:04:56]} 3... a6 {[%clk 0:04:57]} 4. Ba4
{[%clk 0:04:54.7]} 4... Nf6 {[%clk 0:04:55.9]} 5. O-O {[%clk 0:04:53.5]} 5...
Be7 {[%clk 0:04:54.6]} 6. d3 {[%clk 0:04:52.5]} 6... b5 {[%clk 0:04:52.2]} 7.
Bb3 {[%clk 0:04:51.9]} 7... d6 {[%clk 0:04:51.5]} 8. a4 {[%clk 0:04:50.4]} 8...
Rb8 {[%clk 0:04:43.5]} 9. axb5 {[%clk 0:04:48.9]} 9... axb5 {[%clk 0:04:43.4]}
10. Re1 {[%clk 0:04:46.5]} 10... O-O {[%clk 0:04:41.8]} 11. Nbd2 {[%clk
0:04:46]} 11... Be6 {[%clk 0:04:34.4]} 12. Bxe6 {[%clk 0:04:43.7]} 12... fxe6
{[%clk 0:04:34.3]} 13. c3 {[%clk 0:04:42.7]} 13... Qe8 {[%clk 0:04:26.4]} 14.
Nf1 {[%clk 0:04:39.6]} 14... d5 {[%clk 0:04:17]} 15. exd5 {[%clk 0:04:36.2]}
15... exd5 {[%clk 0:04:15.7]} 16. Nxe5 {[%clk 0:04:35.7]} 16... Nxe5 {[%clk
0:04:11.2]} 17. Rxe5 {[%clk 0:04:35.6]} 17... Qf7 {[%clk 0:04:10.4]} 18. Ng3
{[%clk 0:04:33.3]} 18... Bd6 {[%clk 0:04:02]} 19. Re1 {[%clk 0:04:32.1]} 19...
h5 {[%clk 0:03:51.9]} 20. f3 {[%clk 0:04:27.8]} 20... h4 {[%clk 0:03:46.1]} 21.
Nf5 {[%clk 0:04:26.8]} 21... Bxh2+ {[%clk 0:03:19.3]} 22. Kxh2 {[%clk
0:04:24.4]} 22... Qh5 {[%clk 0:03:14.7]} 23. Re5 {[%clk 0:04:20.5]} 23... Kh8
{[%clk 0:03:06.5]} 24. Ne7 {[%clk 0:04:18.1]} 24... Qxe5+ {[%clk 0:03:02.4]} 25.
Kh1 {[%clk 0:04:14.1]} 25... Qh5 {[%clk 0:02:55.9]} 26. Bf4 {[%clk 0:04:08]}
26... Rbe8 {[%clk 0:02:50.6]} 27. Nc6 {[%clk 0:04:05.3]} 27... h3 {[%clk
0:02:46.5]} 28. g4 {[%clk 0:03:38.6]} 28... Qh4 {[%clk 0:02:40.9]} 29. Ne5
{[%clk 0:03:35.5]} 29... Qf2 {[%clk 0:02:31.2]} 30. Ng6+ {[%clk 0:03:33.2]}
30... Kg8 {[%clk 0:02:26.5]} 31. Qf1 {[%clk 0:03:31.2]} 31... Qg2+ {[%clk
0:02:09.5]} 32. Qxg2 {[%clk 0:03:26.7]} 32... hxg2+ {[%clk 0:02:09.4]} 33. Kxg2
{[%clk 0:03:22.4]} 33... Re2+ {[%clk 0:02:07.6]} 34. Kf1 {[%clk 0:03:21.8]}
34... Rfe8 {[%clk 0:02:06.2]} 35. d4 {[%clk 0:03:14]} 35... Rxb2 {[%clk
0:01:59.4]} 36. Ne5 {[%clk 0:03:12.3]} 36... Rc2 {[%clk 0:01:44.9]} 37. Ra3
{[%clk 0:03:10.3]} 37... Nh7 {[%clk 0:01:30.5]} 38. Ke1 {[%clk 0:02:51.3]} 38...
g5 {[%clk 0:01:28.6]} 39. Bd2 {[%clk 0:02:49.6]} 39... c5 {[%clk 0:01:26.6]} 40.
Kd1 {[%clk 0:02:47.4]} 40... cxd4 {[%clk 0:01:15.6]} 41. Kxc2 {[%clk 0:02:43.6]}
41... Rxe5 {[%clk 0:01:13.8]} 42. cxd4 {[%clk 0:02:43.2]} 42... Re2 {[%clk
0:01:10.6]} 43. Ra5 {[%clk 0:02:40.7]} 43... Rf2 {[%clk 0:01:09.2]} 44. Rxb5
{[%clk 0:02:38.7]} 44... Rxf3 {[%clk 0:01:07.9]} 45. Rxd5 {[%clk 0:02:38.3]}
45... Kf7 {[%clk 0:01:04.5]} 46. Rd7+ {[%clk 0:02:35.4]} 46... Kg6 {[%clk
0:01:02.6]} 47. d5 {[%clk 0:02:25.6]} 47... Rg3 {[%clk 0:00:58.6]} 48. Rd6+
{[%clk 0:02:22.9]} 48... Nf6 {[%clk 0:00:55.5]} 49. Bc3 {[%clk 0:02:20.4]} 49...
Rf3 {[%clk 0:00:51]} 50. Rxf6+ {[%clk 0:02:17]} 50... Rxf6 {[%clk 0:00:49.9]}
51. Bxf6 {[%clk 0:02:16.9]} 51... Kxf6 {[%clk 0:00:49.3]} 52. Kd3 {[%clk
0:02:16]} 52... Ke5 {[%clk 0:00:45.4]} 53. Kc4 {[%clk 0:02:15.5]} 53... Kd6
{[%clk 0:00:44]} 54. Kd4 {[%clk 0:02:14.4]} 54... Kd7 {[%clk 0:00:43.4]} 55. Ke5
{[%clk 0:02:14]} 55... Ke7 {[%clk 0:00:42.9]} 56. Kf5 {[%clk 0:02:13.6]} 56...
Kd6 {[%clk 0:00:41.8]} 57. Kxg5 {[%clk 0:02:13.1]} 57... Kxd5 {[%clk 0:00:41.4]}
58. Kf6 {[%clk 0:02:12.7]} 1-0